{"text_format":"3","workbook":"xlsx","n_sheets":1,"sheets":["INVENTARIELISTA FÖR UTRUSTNING"],"not_rendered":{"defined_names":5},"read":"whole","date_system":"1900"}

{"sheet":"INVENTARIELISTA FÖR UTRUSTNING","index":0,"n_rows":9,"n_cols":19,"rows_kept":9,"merged":[[0,1,0,5],[0,6,0,9],[0,10,0,12],[0,13,0,14],[2,1,2,6],[2,7,2,18]]}
[null,"INVENTARIELISTA FÖR UTRUSTNING"]
[]
[null,"SKICK",{"$nulls":5},"FINANSIELL STATUS"]
[null,"Tillgångs- eller serienummer","Objektbeskrivning (fabrikat och modell)","Plats","Skick","Leverantör","Återstående år i tjänst ","Startvärde","Handpenning","Datum för inköp eller hyra","Låneperiod i år","Ränta","Månadsbetalning","Månatliga driftskostnader","Total månadskostnad","Förväntat värde i slutet av låneperioden","Årlig rak avskrivning","Månatlig rak avskrivning","Aktuellt värde"]
[null,123,"Fabrikat/modell","Huvudkontor","Bra","lokal",5,{"v":210000,"d":"210,000.00 kr"},{"v":35000,"d":"35,000.00 kr"},{"$f":"DATE(YEAR(TODAY())-2, 1,1)","v":"2016-01-01"},4,{"v":0.1,"d":"10.00%"},{"$f":"IFERROR(IF(AND(Data[[#This Row],[Startvärde]]>0,Data[[#This Row],[Startvärde]]<>Data[[#This Row],[Handpenning]]),-1*PMT(Data[[#This Row],[Ränta]]/12,Data[[#This Row],[Låneperiod i år]]*12,Data[[#This Row],[Startvärde]]-Data[[#This Row],[Handpenning]]),0),0)","v":{"v":4438.4521010807575,"d":"4,438.45 kr"}},{"v":1400,"d":"1,400.00 kr"},{"$f":"IFERROR(Data[[#This Row],[Månatliga driftskostnader]]+Data[[#This Row],[Månadsbetalning]],\"\")","v":{"v":5838.4521010807575,"d":"5,838.45 kr"}},{"v":140000,"d":"140,000.00 kr"},{"$f":"IFERROR(IF(Data[[#This Row],[Startvärde]]>0,SLN(Data[[#This Row],[Startvärde]],Data[[#This Row],[Förväntat värde i slutet av låneperioden]],Data[[#This Row],[Återstående år i tjänst ]]),0),0)","v":{"v":14000,"d":"14,000.00 kr"}},{"$f":"IFERROR(Data[[#This Row],[Årlig rak avskrivning]]/12,0)","v":{"v":1166.6666666666667,"d":"1,166.67 kr"}},{"$f":"IFERROR(Data[[#This Row],[Startvärde]]-(Data[[#This Row],[Årlig rak avskrivning]]*((TODAY()-Data[[#This Row],[Datum för inköp eller hyra]])/365)),0)","v":{"v":175095.8904109589,"d":"175,095.89 kr"}}]
[null,456,"Fabrikat/modell","Huvudkontor","Utmärkt","lokal",3,{"v":35000,"d":"35,000.00 kr"},{"v":35000,"d":"35,000.00 kr"},{"$f":"DATE(YEAR(TODAY())-1, 1,1)","v":"2017-01-01"},null,null,{"$f":"IFERROR(IF(AND(Data[[#This Row],[Startvärde]]>0,Data[[#This Row],[Startvärde]]<>Data[[#This Row],[Handpenning]]),-1*PMT(Data[[#This Row],[Ränta]]/12,Data[[#This Row],[Låneperiod i år]]*12,Data[[#This Row],[Startvärde]]-Data[[#This Row],[Handpenning]]),0),0)","v":{"v":0,"d":"0.00 kr"}},{"v":140,"d":"140.00 kr"},{"$f":"IFERROR(Data[[#This Row],[Månatliga driftskostnader]]+Data[[#This Row],[Månadsbetalning]],\"\")","v":{"v":140,"d":"140.00 kr"}},null,{"$f":"IFERROR(IF(Data[[#This Row],[Startvärde]]>0,SLN(Data[[#This Row],[Startvärde]],Data[[#This Row],[Förväntat värde i slutet av låneperioden]],Data[[#This Row],[Återstående år i tjänst ]]),0),0)","v":{"v":11666.666666666666,"d":"11,666.67 kr"}},{"$f":"IFERROR(Data[[#This Row],[Årlig rak avskrivning]]/12,0)","v":{"v":972.2222222222222,"d":"972.22 kr"}},{"$f":"IFERROR(Data[[#This Row],[Startvärde]]-(Data[[#This Row],[Årlig rak avskrivning]]*((TODAY()-Data[[#This Row],[Datum för inköp eller hyra]])/365)),0)","v":{"v":17611.87214611872,"d":"17,611.87 kr"}}]
[null,789,"Fabrikat/modell","Östkusten","Skapligt","lokal",6,{"v":350000,"d":"350,000.00 kr"},{"v":140000,"d":"140,000.00 kr"},{"$f":"TODAY()","v":"2018-06-29"},5,{"v":0.05,"d":"5.00%"},{"$f":"IFERROR(IF(AND(Data[[#This Row],[Startvärde]]>0,Data[[#This Row],[Startvärde]]<>Data[[#This Row],[Handpenning]]),-1*PMT(Data[[#This Row],[Ränta]]/12,Data[[#This Row],[Låneperiod i år]]*12,Data[[#This Row],[Startvärde]]-Data[[#This Row],[Handpenning]]),0),0)","v":{"v":3962.959065242296,"d":"3,962.96 kr"}},{"v":280,"d":"280.00 kr"},{"$f":"IFERROR(Data[[#This Row],[Månatliga driftskostnader]]+Data[[#This Row],[Månadsbetalning]],\"\")","v":{"v":4242.959065242296,"d":"4,242.96 kr"}},{"v":10500,"d":"10,500.00 kr"},{"$f":"IFERROR(IF(Data[[#This Row],[Startvärde]]>0,SLN(Data[[#This Row],[Startvärde]],Data[[#This Row],[Förväntat värde i slutet av låneperioden]],Data[[#This Row],[Återstående år i tjänst ]]),0),0)","v":{"v":56583.333333333336,"d":"56,583.33 kr"}},{"$f":"IFERROR(Data[[#This Row],[Årlig rak avskrivning]]/12,0)","v":{"v":4715.277777777778,"d":"4,715.28 kr"}},{"$f":"IFERROR(Data[[#This Row],[Startvärde]]-(Data[[#This Row],[Årlig rak avskrivning]]*((TODAY()-Data[[#This Row],[Datum för inköp eller hyra]])/365)),0)","v":{"v":350000,"d":"350,000.00 kr"}}]
[{"$nulls":12},{"$f":"IFERROR(IF(AND(Data[[#This Row],[Startvärde]]>0,Data[[#This Row],[Startvärde]]<>Data[[#This Row],[Handpenning]]),-1*PMT(Data[[#This Row],[Ränta]]/12,Data[[#This Row],[Låneperiod i år]]*12,Data[[#This Row],[Startvärde]]-Data[[#This Row],[Handpenning]]),0),0)","v":{"v":0,"d":"0.00 kr"}},null,{"$f":"IFERROR(Data[[#This Row],[Månatliga driftskostnader]]+Data[[#This Row],[Månadsbetalning]],\"\")","v":{"v":0,"d":"0.00 kr"}},null,{"$f":"IFERROR(IF(Data[[#This Row],[Startvärde]]>0,SLN(Data[[#This Row],[Startvärde]],Data[[#This Row],[Förväntat värde i slutet av låneperioden]],Data[[#This Row],[Återstående år i tjänst ]]),0),0)","v":{"v":0,"d":"0.00 kr"}},{"$f":"IFERROR(Data[[#This Row],[Årlig rak avskrivning]]/12,0)","v":{"v":0,"d":"0.00 kr"}},{"$f":"IFERROR(Data[[#This Row],[Startvärde]]-(Data[[#This Row],[Årlig rak avskrivning]]*((TODAY()-Data[[#This Row],[Datum för inköp eller hyra]])/365)),0)","v":{"v":0,"d":"0.00 kr"}}]
[{"$nulls":12},{"$f":"IFERROR(IF(AND(Data[[#This Row],[Startvärde]]>0,Data[[#This Row],[Startvärde]]<>Data[[#This Row],[Handpenning]]),-1*PMT(Data[[#This Row],[Ränta]]/12,Data[[#This Row],[Låneperiod i år]]*12,Data[[#This Row],[Startvärde]]-Data[[#This Row],[Handpenning]]),0),0)","v":{"v":0,"d":"0.00 kr"}},null,{"$f":"IFERROR(Data[[#This Row],[Månatliga driftskostnader]]+Data[[#This Row],[Månadsbetalning]],\"\")","v":{"v":0,"d":"0.00 kr"}},null,{"$f":"IFERROR(IF(Data[[#This Row],[Startvärde]]>0,SLN(Data[[#This Row],[Startvärde]],Data[[#This Row],[Förväntat värde i slutet av låneperioden]],Data[[#This Row],[Återstående år i tjänst ]]),0),0)","v":{"v":0,"d":"0.00 kr"}},{"$f":"IFERROR(Data[[#This Row],[Årlig rak avskrivning]]/12,0)","v":{"v":0,"d":"0.00 kr"}},{"$f":"IFERROR(Data[[#This Row],[Startvärde]]-(Data[[#This Row],[Årlig rak avskrivning]]*((TODAY()-Data[[#This Row],[Datum för inköp eller hyra]])/365)),0)","v":{"v":0,"d":"0.00 kr"}}]